[Event "Early-Titled-Tuesday-Blitz-August-29-2023"]
[Site "Chess.com"]
[Date "2023.08.29"]
[Round "8"]
[White "Miguelitro69"]
[Black "ExchangeAB"]
[Result "1/2-1/2"]
[WhiteElo "2296"]
[BlackElo "2448"]
[TimeControl "180+1"]
[EndTime "9:28:24 PDT"]
[Termination "Game drawn - insufficient material"]

1. e4 {[%clk 0:03:00]} 1... c6 {[%clk 0:03:00.3]} 2. d4 {[%clk 0:02:59.6]} 2...
d5 {[%clk 0:03:01.2]} 3. Nc3 {[%clk 0:03:00]} 3... dxe4 {[%clk 0:03:00.2]} 4.
Nxe4 {[%clk 0:03:00.9]} 4... Nf6 {[%clk 0:02:59.9]} 5. Nxf6+ {[%clk 0:03:00.9]}
5... exf6 {[%clk 0:03:00.8]} 6. c3 {[%clk 0:03:00.7]} 6... Bd6 {[%clk
0:03:00.7]} 7. Bd3 {[%clk 0:03:00.9]} 7... O-O {[%clk 0:03:00.3]} 8. Ne2 {[%clk
0:03:01]} 8... h6 {[%clk 0:02:58.9]} 9. O-O {[%clk 0:02:59.7]} 9... Nd7 {[%clk
0:02:56.8]} 10. Ng3 {[%clk 0:02:59.3]} 10... Nb6 {[%clk 0:02:53.4]} 11. Nf5
{[%clk 0:02:55.8]} 11... Bxf5 {[%clk 0:02:50.4]} 12. Bxf5 {[%clk 0:02:55]} 12...
Qc7 {[%clk 0:02:48.5]} 13. h3 {[%clk 0:02:51.3]} 13... Bf4 {[%clk 0:02:42.9]}
14. Qg4 {[%clk 0:02:47.3]} 14... Bxc1 {[%clk 0:02:41.1]} 15. Raxc1 {[%clk
0:02:47]} 15... Rfe8 {[%clk 0:02:40.5]} 16. Bd3 {[%clk 0:02:38.3]} 16... Qd7
{[%clk 0:02:33.4]} 17. Qxd7 {[%clk 0:02:17.4]} 17... Nxd7 {[%clk 0:02:34.3]} 18.
Rfe1 {[%clk 0:02:17.5]} 18... Kf8 {[%clk 0:02:33.3]} 19. Kf1 {[%clk 0:02:16.3]}
19... g6 {[%clk 0:02:24.9]} 20. Rxe8+ {[%clk 0:02:11.3]} 20... Rxe8 {[%clk
0:02:25.8]} 21. Re1 {[%clk 0:02:11.4]} 21... f5 {[%clk 0:02:25.5]} 22. Rxe8+
{[%clk 0:02:02.7]} 22... Kxe8 {[%clk 0:02:26.4]} 23. Ke2 {[%clk 0:02:03]} 23...
Ke7 {[%clk 0:02:26.3]} 24. Ke3 {[%clk 0:02:03.1]} 24... Kf6 {[%clk 0:02:24.5]}
25. c4 {[%clk 0:02:02.8]} 25... b6 {[%clk 0:02:19.5]} 26. b4 {[%clk 0:02:01.4]}
26... c5 {[%clk 0:02:17.2]} 27. a3 {[%clk 0:01:47.2]} 27... Ke6 {[%clk
0:02:08.6]} 28. Bc2 {[%clk 0:01:33]} 28... Kd6 {[%clk 0:01:57.6]} 29. Ba4 {[%clk
0:01:27.4]} 29... Nf6 {[%clk 0:01:55.8]} 30. f3 {[%clk 0:01:25.3]} 30... Nh5
{[%clk 0:01:47.3]} 31. Be8 {[%clk 0:01:20.9]} 31... Ke7 {[%clk 0:01:45.1]} 32.
Bc6 {[%clk 0:01:20.3]} 32... Ng7 {[%clk 0:01:41.2]} 33. dxc5 {[%clk 0:01:17.7]}
33... bxc5 {[%clk 0:01:42.1]} 34. bxc5 {[%clk 0:01:15.4]} 34... Ne6 {[%clk
0:01:41.8]} 35. Bd5 {[%clk 0:01:07.9]} 35... Nxc5 {[%clk 0:01:38.6]} 36. Kd4
{[%clk 0:01:07.6]} 36... Nb3+ {[%clk 0:01:33.6]} 37. Kc3 {[%clk 0:01:07.7]}
37... Nc5 {[%clk 0:01:33.8]} 38. Kb4 {[%clk 0:01:06.7]} 38... Kd6 {[%clk
0:01:15.8]} 39. Kb5 {[%clk 0:01:05.8]} 39... f6 {[%clk 0:01:13.5]} 40. Bf7
{[%clk 0:00:57.4]} 40... g5 {[%clk 0:01:13.5]} 41. Bg6 {[%clk 0:00:57.5]} 41...
f4 {[%clk 0:01:13.6]} 42. Bf5 {[%clk 0:00:53.2]} 42... h5 {[%clk 0:01:12.9]} 43.
a4 {[%clk 0:00:48.9]} 43... h4 {[%clk 0:01:04.8]} 44. a5 {[%clk 0:00:47.6]}
44... Nb7 {[%clk 0:00:43.2]} 45. Ka6 {[%clk 0:00:25.8]} 45... Kc7 {[%clk
0:00:43.3]} 46. Bc2 {[%clk 0:00:17.2]} 46... Kb8 {[%clk 0:00:35.9]} 47. Kb5
{[%clk 0:00:16.1]} 47... Kc7 {[%clk 0:00:34.1]} 48. c5 {[%clk 0:00:15.6]} 48...
Nd8 {[%clk 0:00:17.6]} 49. Bb3 {[%clk 0:00:11.8]} 49... Nc6 {[%clk 0:00:17.1]}
50. Ka6 {[%clk 0:00:08.5]} 50... Nd4 {[%clk 0:00:15]} 51. Bd1 {[%clk 0:00:08.5]}
51... Nc6 {[%clk 0:00:14.2]} 52. Kb5 {[%clk 0:00:07.5]} 52... Nd4+ {[%clk
0:00:13.8]} 53. Kc4 {[%clk 0:00:07.7]} 53... Nc6 {[%clk 0:00:13.6]} 54. a6
{[%clk 0:00:06.9]} 54... Nb8 {[%clk 0:00:10.1]} 55. Kd5 {[%clk 0:00:06.9]} 55...
Nxa6 {[%clk 0:00:10.3]} 56. Ba4 {[%clk 0:00:06.2]} 56... Nb8 {[%clk 0:00:05.9]}
57. Ke6 {[%clk 0:00:05.1]} 57... Nc6 {[%clk 0:00:03.6]} 58. Kxf6 {[%clk
0:00:04.8]} 58... Nd4 {[%clk 0:00:02.6]} 59. Kxg5 {[%clk 0:00:04.2]} 59... Ne6+
{[%clk 0:00:02.9]} 60. Kxh4 {[%clk 0:00:04.1]} 60... Nxc5 {[%clk 0:00:03.2]} 61.
Kg4 {[%clk 0:00:04.9]} 61... Ne6 {[%clk 0:00:03.7]} 62. Kf5 {[%clk 0:00:04.8]}
62... Kd6 {[%clk 0:00:04]} 63. Bd1 {[%clk 0:00:03.8]} 63... a5 {[%clk
0:00:03.9]} 64. h4 {[%clk 0:00:03.8]} 64... Ke7 {[%clk 0:00:04]} 65. h5 {[%clk
0:00:03.8]} 65... Nd4+ {[%clk 0:00:03.5]} 66. Kxf4 {[%clk 0:00:03.7]} 66... a4
{[%clk 0:00:03.8]} 67. Bxa4 {[%clk 0:00:02.3]} 67... Kf6 {[%clk 0:00:04.4]} 68.
Ke4 {[%clk 0:00:02.6]} 68... Ne6 {[%clk 0:00:05.3]} 69. g4 {[%clk 0:00:02.6]}
69... Kg5 {[%clk 0:00:04.7]} 70. f4+ {[%clk 0:00:03.5]} 70... Nxf4 {[%clk
0:00:05]} 71. Kf3 {[%clk 0:00:03.6]} 71... Ne6 {[%clk 0:00:05.2]} 72. Bc2 {[%clk
0:00:04.5]} 72... Ng7 {[%clk 0:00:05.5]} 73. Bf5 {[%clk 0:00:04.2]} 73... Nxh5
{[%clk 0:00:05.6]} 74. gxh5 {[%clk 0:00:03.7]} 74... Kxh5 {[%clk 0:00:05.9]}
1/2-1/2

[Event "Early-Titled-Tuesday-Blitz-August-29-2023"]
[Site "Chess.com"]
[Date "2023.08.29"]
[Round "8"]
[White "Irina_Barchuk"]
[Black "Balla_Tamas"]
[Result "1/2-1/2"]
[WhiteElo "2330"]
[BlackElo "2436"]
[TimeControl "180+1"]
[EndTime "9:28:25 PDT"]
[Termination "Game drawn - insufficient material"]

1. e4 {[%clk 0:02:59.7]} 1... c5 {[%clk 0:02:59.7]} 2. Nf3 {[%clk 0:02:57.7]}
2... Nc6 {[%clk 0:02:59.7]} 3. d4 {[%clk 0:02:58.2]} 3... cxd4 {[%clk
0:03:00.6]} 4. Nxd4 {[%clk 0:02:59.1]} 4... e5 {[%clk 0:03:01.2]} 5. Nb5 {[%clk
0:02:59]} 5... d6 {[%clk 0:03:01.5]} 6. N1c3 {[%clk 0:02:59]} 6... a6 {[%clk
0:03:01.3]} 7. Na3 {[%clk 0:02:54.9]} 7... b5 {[%clk 0:03:01.8]} 8. Nd5 {[%clk
0:02:55]} 8... Nge7 {[%clk 0:03:01.5]} 9. c4 {[%clk 0:02:52.7]} 9... Nxd5 {[%clk
0:03:01.5]} 10. cxd5 {[%clk 0:02:52.4]} 10... Nd4 {[%clk 0:03:01.5]} 11. Bd3
{[%clk 0:02:52.4]} 11... g6 {[%clk 0:02:29.6]} 12. O-O {[%clk 0:02:51.2]} 12...
Bg7 {[%clk 0:02:29.2]} 13. Nc2 {[%clk 0:02:50.8]} 13... O-O {[%clk 0:02:26.1]}
14. Nxd4 {[%clk 0:02:50.1]} 14... exd4 {[%clk 0:02:26.6]} 15. Bf4 {[%clk
0:02:49.8]} 15... f5 {[%clk 0:02:26.1]} 16. Qd2 {[%clk 0:02:46.7]} 16... fxe4
{[%clk 0:02:21.7]} 17. Bxe4 {[%clk 0:02:47.6]} 17... Bf5 {[%clk 0:02:22]} 18.
Bf3 {[%clk 0:02:40.4]} 18... Be5 {[%clk 0:02:18.2]} 19. Rfe1 {[%clk 0:02:33.8]}
19... Qf6 {[%clk 0:02:08.1]} 20. Bg3 {[%clk 0:02:33.7]} 20... Rac8 {[%clk
0:02:00.1]} 21. Rac1 {[%clk 0:02:33.7]} 21... Rc4 {[%clk 0:01:44.2]} 22. b3
{[%clk 0:02:33.4]} 22... Rc3 {[%clk 0:01:31.7]} 23. Bxe5 {[%clk 0:02:28]} 23...
dxe5 {[%clk 0:01:27.9]} 24. Rxc3 {[%clk 0:02:27.9]} 24... dxc3 {[%clk
0:01:27.9]} 25. Qxc3 {[%clk 0:02:27.8]} 25... Bg4 {[%clk 0:00:56]} 26. Qxe5
{[%clk 0:02:19.8]} 26... Bxf3 {[%clk 0:00:51.6]} 27. Qxf6 {[%clk 0:02:15.6]}
27... Rxf6 {[%clk 0:00:51.5]} 28. gxf3 {[%clk 0:02:16.1]} 28... Rxf3 {[%clk
0:00:51.3]} 29. Re3 {[%clk 0:02:10.9]} 29... Rf5 {[%clk 0:00:45.4]} 30. Rd3
{[%clk 0:02:09.4]} 30... Kf7 {[%clk 0:00:45.1]} 31. d6 {[%clk 0:02:05.3]} 31...
Ke8 {[%clk 0:00:45.4]} 32. d7+ {[%clk 0:02:02.4]} 32... Kd8 {[%clk 0:00:45.5]}
33. Rd6 {[%clk 0:02:02.8]} 33... a5 {[%clk 0:00:35.5]} 34. Kg2 {[%clk
0:02:02.3]} 34... a4 {[%clk 0:00:34.8]} 35. bxa4 {[%clk 0:01:53.7]} 35... bxa4
{[%clk 0:00:35.7]} 36. Kg3 {[%clk 0:01:52.4]} 36... Rb5 {[%clk 0:00:34.2]} 37.
Rd4 {[%clk 0:01:48.2]} 37... Rb2 {[%clk 0:00:30.6]} 38. Rxa4 {[%clk 0:01:46.8]}
38... Kxd7 {[%clk 0:00:31.1]} 39. Ra7+ {[%clk 0:01:46.8]} 39... Ke6 {[%clk
0:00:31.1]} 40. a4 {[%clk 0:01:42.7]} 40... Ra2 {[%clk 0:00:31]} 41. f4 {[%clk
0:01:41.2]} 41... Kf5 {[%clk 0:00:25.4]} 42. Ra5+ {[%clk 0:01:37.7]} 42... Ke4
{[%clk 0:00:25.5]} 43. h3 {[%clk 0:01:31.9]} 43... h5 {[%clk 0:00:22.6]} 44.
Re5+ {[%clk 0:01:30.5]} 44... Kd3 {[%clk 0:00:20.2]} 45. Rg5 {[%clk 0:01:26.6]}
45... Rxa4 {[%clk 0:00:18.5]} 46. Rxg6 {[%clk 0:01:26.7]} 46... Ke3 {[%clk
0:00:19]} 47. Re6+ {[%clk 0:01:26.5]} 47... Kd4 {[%clk 0:00:17.6]} 48. Re5
{[%clk 0:01:24.5]} 48... Ra3+ {[%clk 0:00:13.5]} 49. Kh4 {[%clk 0:01:24.1]}
49... Rf3 {[%clk 0:00:13.3]} 50. Kxh5 {[%clk 0:01:03.1]} 50... Rxf4 {[%clk
0:00:13.1]} 51. Re8 {[%clk 0:01:03.6]} 51... Rf1 {[%clk 0:00:08.6]} 52. h4
{[%clk 0:01:03.6]} 52... Rg1 {[%clk 0:00:05.7]} 53. Kh6 {[%clk 0:01:03.3]} 53...
Kd5 {[%clk 0:00:05.9]} 54. h5 {[%clk 0:01:03.3]} 54... Kd6 {[%clk 0:00:06.1]}
55. Kh7 {[%clk 0:01:02.6]} 55... Kd7 {[%clk 0:00:06.5]} 56. Re2 {[%clk
0:00:58.3]} 56... Rg3 {[%clk 0:00:05.3]} 57. h6 {[%clk 0:00:56.8]} 57... Rg1
{[%clk 0:00:05]} 58. Kh8 {[%clk 0:00:56.8]} 58... Kd6 {[%clk 0:00:05.7]} 59. h7
{[%clk 0:00:52.6]} 59... Kd7 {[%clk 0:00:05.8]} 60. Re3 {[%clk 0:00:47.1]} 60...
Rg2 {[%clk 0:00:05.7]} 61. Ra3 {[%clk 0:00:41]} 61... Ke6 {[%clk 0:00:03]} 62.
Ra6+ {[%clk 0:00:36.8]} 62... Kf7 {[%clk 0:00:03.2]} 63. Ra7+ {[%clk 0:00:36.9]}
63... Kf8 {[%clk 0:00:03.6]} 64. Ra8+ {[%clk 0:00:36.8]} 64... Kf7 {[%clk
0:00:04.3]} 65. Rg8 {[%clk 0:00:35.9]} 65... Rh2 {[%clk 0:00:02.9]} 66. Rg3
{[%clk 0:00:35.4]} 66... Rc2 {[%clk 0:00:02.1]} 67. Rf3+ {[%clk 0:00:34.2]}
67... Kg6 {[%clk 0:00:02.7]} 68. Rf8 {[%clk 0:00:29.7]} 68... Rc7 {[%clk
0:00:02.3]} 69. Rg8+ {[%clk 0:00:29.7]} 69... Kh6 {[%clk 0:00:02.3]} 70. Rg1
{[%clk 0:00:27.9]} 70... Rxh7+ {[%clk 0:00:02.9]} 71. Kg8 {[%clk 0:00:28.4]}
71... Ra7 {[%clk 0:00:03.1]} 72. Kf8 {[%clk 0:00:28]} 72... Ra8+ {[%clk
0:00:02.8]} 73. Ke7 {[%clk 0:00:28.1]} 73... Ra7+ {[%clk 0:00:03.6]} 74. Kd6
{[%clk 0:00:28]} 74... Ra6+ {[%clk 0:00:04.1]} 75. Ke5 {[%clk 0:00:28.1]} 75...
Rg6 {[%clk 0:00:05]} 76. Rxg6+ {[%clk 0:00:27.4]} 76... Kxg6 {[%clk 0:00:05.5]}
1/2-1/2

[Event "Early-Titled-Tuesday-Blitz-August-29-2023"]
[Site "Chess.com"]
[Date "2023.08.29"]
[Round "8"]
[White "Sl4werThanYou"]
[Black "kuli4ik"]
[Result "1/2-1/2"]
[WhiteElo "2739"]
[BlackElo "2896"]
[TimeControl "180+1"]
[EndTime "9:28:26 PDT"]
[Termination "Game drawn by stalemate"]

1. e4 {[%clk 0:03:00.9]} 1... c5 {[%clk 0:02:58.8]} 2. Nf3 {[%clk 0:03:00.5]}
2... Nc6 {[%clk 0:02:58]} 3. d4 {[%clk 0:02:52.3]} 3... cxd4 {[%clk 0:02:58.9]}
4. Nxd4 {[%clk 0:02:53]} 4... Qa5+ {[%clk 0:02:58.5]} 5. Nc3 {[%clk 0:02:49.8]}
5... Nf6 {[%clk 0:02:57.7]} 6. Nb3 {[%clk 0:02:46.8]} 6... Qc7 {[%clk
0:02:55.8]} 7. Bd3 {[%clk 0:02:40.7]} 7... e6 {[%clk 0:02:54.9]} 8. O-O {[%clk
0:02:39.2]} 8... a6 {[%clk 0:02:55.1]} 9. Be3 {[%clk 0:02:38.3]} 9... b5 {[%clk
0:02:54.1]} 10. f4 {[%clk 0:02:37.1]} 10... d6 {[%clk 0:02:53.3]} 11. Qf3 {[%clk
0:02:34.4]} 11... Bb7 {[%clk 0:02:52.7]} 12. Kh1 {[%clk 0:02:33.7]} 12... Be7
{[%clk 0:02:52.3]} 13. a3 {[%clk 0:02:33.7]} 13... Rc8 {[%clk 0:02:46.4]} 14.
Qg3 {[%clk 0:02:33.3]} 14... g6 {[%clk 0:02:38.8]} 15. Rae1 {[%clk 0:02:31.7]}
15... h5 {[%clk 0:02:33.3]} 16. h3 {[%clk 0:02:28.5]} 16... h4 {[%clk
0:02:32.2]} 17. Qf3 {[%clk 0:02:28.1]} 17... Nh5 {[%clk 0:02:32]} 18. Bf2 {[%clk
0:02:24.9]} 18... Bf6 {[%clk 0:02:26.7]} 19. Re2 {[%clk 0:02:19]} 19... Ne7
{[%clk 0:02:25.3]} 20. Nd1 {[%clk 0:02:13]} 20... Nf5 {[%clk 0:02:22.8]} 21. c3
{[%clk 0:02:02.2]} 21... Nfg3+ {[%clk 0:02:03.2]} 22. Bxg3 {[%clk 0:02:01.9]}
22... Nxg3+ {[%clk 0:02:02.8]} 23. Kh2 {[%clk 0:02:02.8]} 23... Nxe2 {[%clk
0:02:02.5]} 24. Qxe2 {[%clk 0:02:02.8]} 24... Bg7 {[%clk 0:01:51.1]} 25. Kh1
{[%clk 0:02:02.9]} 25... Qe7 {[%clk 0:01:41.7]} 26. Nd4 {[%clk 0:01:58.7]} 26...
e5 {[%clk 0:01:37.8]} 27. Nc2 {[%clk 0:01:52.9]} 27... exf4 {[%clk 0:01:37]} 28.
Rxf4 {[%clk 0:01:51.5]} 28... d5 {[%clk 0:01:33.6]} 29. Qf3 {[%clk 0:01:44.1]}
29... Be5 {[%clk 0:01:20.1]} 30. Rg4 {[%clk 0:01:36.9]} 30... dxe4 {[%clk
0:01:15.9]} 31. Bxe4 {[%clk 0:01:37.8]} 31... Bxe4 {[%clk 0:01:15.8]} 32. Rxe4
{[%clk 0:01:37.6]} 32... O-O {[%clk 0:01:11.4]} 33. Nde3 {[%clk 0:01:36]} 33...
Qg5 {[%clk 0:00:45.3]} 34. Qe2 {[%clk 0:00:55.6]} 34... Bg7 {[%clk 0:00:39.7]}
35. Ne1 {[%clk 0:00:53.7]} 35... Rce8 {[%clk 0:00:38]} 36. Nf3 {[%clk
0:00:54.2]} 36... Qd8 {[%clk 0:00:34.2]} 37. Rxh4 {[%clk 0:00:50.7]} 37... Bf6
{[%clk 0:00:30.3]} 38. Rf4 {[%clk 0:00:48.6]} 38... Qd6 {[%clk 0:00:28.3]} 39.
g3 {[%clk 0:00:41.7]} 39... Re6 {[%clk 0:00:23.6]} 40. Qf2 {[%clk 0:00:40.8]}
40... Rfe8 {[%clk 0:00:19.5]} 41. Ng4 {[%clk 0:00:41.2]} 41... Bg7 {[%clk
0:00:18.3]} 42. Rxf7 {[%clk 0:00:10.6]} 42... Qd1+ {[%clk 0:00:14]} 43. Ng1
{[%clk 0:00:09.9]} 43... Qd5+ {[%clk 0:00:10.8]} 44. Rf3 {[%clk 0:00:08]} 44...
Re1 {[%clk 0:00:10.2]} 45. Kh2 {[%clk 0:00:07.7]} 45... Rxg1 {[%clk 0:00:08.4]}
46. Kxg1 {[%clk 0:00:05.4]} 46... Qd1+ {[%clk 0:00:08.5]} 47. Qf1 {[%clk
0:00:06.1]} 47... Re1 {[%clk 0:00:08.6]} 48. Kg2 {[%clk 0:00:03.6]} 48... Rxf1
{[%clk 0:00:08.2]} 49. Rxf1 {[%clk 0:00:04.5]} 49... Qd5+ {[%clk 0:00:08.1]} 50.
Rf3 {[%clk 0:00:04.6]} 50... a5 {[%clk 0:00:08.2]} 51. Ne3 {[%clk 0:00:05]}
51... Qd2+ {[%clk 0:00:07.9]} 52. Kg1 {[%clk 0:00:01.3]} 52... Qxb2 {[%clk
0:00:08.1]} 53. h4 {[%clk 0:00:01.4]} 53... Qxc3 {[%clk 0:00:07.6]} 54. g4
{[%clk 0:00:02.3]} 54... Qxa3 {[%clk 0:00:07.5]} 55. h5 {[%clk 0:00:02.6]} 55...
Qc1+ {[%clk 0:00:06.9]} 56. Kg2 {[%clk 0:00:02.8]} 56... Qd2+ {[%clk 0:00:07.3]}
57. Kg3 {[%clk 0:00:01.7]} 57... Be5+ {[%clk 0:00:07.1]} 58. Kh4 {[%clk
0:00:02.3]} 58... Qd8+ {[%clk 0:00:06.3]} 59. Kh3 {[%clk 0:00:02.2]} 59... gxh5
{[%clk 0:00:06.7]} 60. gxh5 {[%clk 0:00:03.1]} 60... a4 {[%clk 0:00:05.7]} 61.
Ng4 {[%clk 0:00:03.5]} 61... Bg7 {[%clk 0:00:05.6]} 62. h6 {[%clk 0:00:04.1]}
62... Qd7 {[%clk 0:00:04.5]} 63. hxg7 {[%clk 0:00:04.2]} 63... Kxg7 {[%clk
0:00:05.4]} 64. Kh2 {[%clk 0:00:02.9]} 64... b4 {[%clk 0:00:05.2]} 65. Rg3
{[%clk 0:00:03.3]} 65... Qd6 {[%clk 0:00:05.2]} 66. Ne5+ {[%clk 0:00:02.9]}
66... Kf6 {[%clk 0:00:05.1]} 67. Rf3+ {[%clk 0:00:02.5]} 67... Kxe5 {[%clk
0:00:05]} 68. Rf2 {[%clk 0:00:01.7]} 68... Kd5+ {[%clk 0:00:05.5]} 69. Kg2
{[%clk 0:00:02.6]} 69... a3 {[%clk 0:00:05.8]} 70. Kf1 {[%clk 0:00:03.5]} 70...
Kc6 {[%clk 0:00:06]} 71. Kg1 {[%clk 0:00:04.4]} 71... Qc5 {[%clk 0:00:06.6]} 72.
Kg2 {[%clk 0:00:05.3]} 72... Qxf2+ {[%clk 0:00:06.9]} 73. Kh1 {[%clk 0:00:05.8]}
73... a2 {[%clk 0:00:07.8]} 1/2-1/2

[Event "Early-Titled-Tuesday-Blitz-August-29-2023"]
[Site "Chess.com"]
[Date "2023.08.29"]
[Round "8"]
[White "mishanick"]
[Black "Rud_Makarian"]
[Result "1-0"]
[WhiteElo "3137"]
[BlackElo "3029"]
[TimeControl "180+1"]
[EndTime "9:28:27 PDT"]
[Termination "mishanick won by resignation"]

1. d4 {[%clk 0:03:00.9]} 1... d5 {[%clk 0:03:00.6]} 2. c4 {[%clk 0:03:01.6]}
2... c6 {[%clk 0:03:01]} 3. Nf3 {[%clk 0:03:01.9]} 3... Nf6 {[%clk 0:03:01.8]}
4. Nc3 {[%clk 0:03:02.4]} 4... e6 {[%clk 0:02:59]} 5. cxd5 {[%clk 0:03:02.2]}
5... exd5 {[%clk 0:02:58.9]} 6. Bf4 {[%clk 0:03:02.3]} 6... Bf5 {[%clk
0:02:55.5]} 7. e3 {[%clk 0:02:59.1]} 7... Nbd7 {[%clk 0:02:55.1]} 8. h3 {[%clk
0:02:55.4]} 8... h6 {[%clk 0:02:54.8]} 9. Bd3 {[%clk 0:02:55]} 9... Bxd3 {[%clk
0:02:51.8]} 10. Qxd3 {[%clk 0:02:55.9]} 10... Be7 {[%clk 0:02:52.4]} 11. O-O
{[%clk 0:02:56.1]} 11... O-O {[%clk 0:02:53]} 12. Rab1 {[%clk 0:02:56]} 12... a5
{[%clk 0:02:53.2]} 13. Rfc1 {[%clk 0:02:49.7]} 13... Re8 {[%clk 0:02:52.7]} 14.
a3 {[%clk 0:02:49.1]} 14... Nb6 {[%clk 0:02:31.4]} 15. Ne5 {[%clk 0:02:40.2]}
15... Nfd7 {[%clk 0:02:28.7]} 16. Nf3 {[%clk 0:02:22.3]} 16... a4 {[%clk
0:02:26.1]} 17. Nd2 {[%clk 0:02:20.3]} 17... Nf6 {[%clk 0:02:13.1]} 18. Ne2
{[%clk 0:02:20.3]} 18... Ne4 {[%clk 0:02:04.8]} 19. Nxe4 {[%clk 0:02:16.8]}
19... dxe4 {[%clk 0:02:05.7]} 20. Qxe4 {[%clk 0:02:14.5]} 20... Bxa3 {[%clk
0:02:04.8]} 21. Qc2 {[%clk 0:02:13]} 21... Bb4 {[%clk 0:02:02.2]} 22. Ra1 {[%clk
0:02:11.9]} 22... Qd5 {[%clk 0:01:57]} 23. Bc7 {[%clk 0:02:11.1]} 23... Nd7
{[%clk 0:01:23.7]} 24. Rxa4 {[%clk 0:02:10.5]} 24... Qb5 {[%clk 0:01:22.8]} 25.
Raa1 {[%clk 0:01:55.8]} 25... Nf6 {[%clk 0:01:20.9]} 26. Be5 {[%clk 0:01:53.8]}
26... Nd7 {[%clk 0:01:21.5]} 27. Bf4 {[%clk 0:01:48.8]} 27... Nf6 {[%clk
0:01:21.5]} 28. Ng3 {[%clk 0:01:48.3]} 28... Nd5 {[%clk 0:01:20.3]} 29. Qf5
{[%clk 0:01:11.7]} 29... Bd2 {[%clk 0:01:13.5]} 30. Rd1 {[%clk 0:00:57]} 30...
Rxa1 {[%clk 0:01:00]} 31. Rxa1 {[%clk 0:00:57.9]} 31... Nxf4 {[%clk 0:01:00.1]}
32. Qxf4 {[%clk 0:00:49.6]} 32... Qxb2 {[%clk 0:00:59.7]} 33. Rf1 {[%clk
0:00:50.3]} 33... Bb4 {[%clk 0:00:50]} 34. Qf5 {[%clk 0:00:40.5]} 34... Bf8
{[%clk 0:00:46.7]} 35. Rb1 {[%clk 0:00:40.1]} 35... Qa2 {[%clk 0:00:41.1]} 36.
Rxb7 {[%clk 0:00:38.8]} 36... Bd6 {[%clk 0:00:37.9]} 37. Nh5 {[%clk 0:00:20.4]}
37... g6 {[%clk 0:00:20.2]} 38. Nf6+ {[%clk 0:00:20]} 38... Kh8 {[%clk
0:00:20.9]} 39. Qb1 {[%clk 0:00:13.5]} 39... Qxb1+ {[%clk 0:00:18.5]} 40. Rxb1
{[%clk 0:00:14.4]} 40... Re6 {[%clk 0:00:17.1]} 41. Nd7 {[%clk 0:00:09.9]} 41...
Kg7 {[%clk 0:00:16.1]} 42. Rc1 {[%clk 0:00:08.5]} 42... Ba3 {[%clk 0:00:13.5]}
43. Rc3 {[%clk 0:00:08.2]} 43... Be7 {[%clk 0:00:13.6]} 44. Nc5 {[%clk
0:00:07.4]} 44... Rd6 {[%clk 0:00:12.2]} 45. g4 {[%clk 0:00:07.2]} 45... Rd8
{[%clk 0:00:08.9]} 46. Nd3 {[%clk 0:00:06.5]} 46... Rc8 {[%clk 0:00:07.7]} 47.
Kg2 {[%clk 0:00:06.6]} 47... Bd6 {[%clk 0:00:07.6]} 48. f4 {[%clk 0:00:06.4]}
48... g5 {[%clk 0:00:06.3]} 49. f5 {[%clk 0:00:06]} 49... f6 {[%clk 0:00:04.2]}
50. Kf3 {[%clk 0:00:06.1]} 50... Kf7 {[%clk 0:00:04.9]} 51. Rc2 {[%clk
0:00:06.1]} 51... Ke7 {[%clk 0:00:05.3]} 52. e4 {[%clk 0:00:06.3]} 52... Kd7
{[%clk 0:00:06.2]} 53. e5 {[%clk 0:00:06.8]} 53... Be7 {[%clk 0:00:06.9]} 54.
e6+ {[%clk 0:00:06.8]} 54... Kd6 {[%clk 0:00:06.3]} 55. Ke4 {[%clk 0:00:07.5]}
55... Rc7 {[%clk 0:00:06.5]} 56. Nb4 {[%clk 0:00:06.9]} 56... Rc8 {[%clk
0:00:06]} 57. Rc4 {[%clk 0:00:06.8]} 57... Rc7 {[%clk 0:00:05.8]} 58. Nd3 {[%clk
0:00:06]} 58... Rc8 {[%clk 0:00:06.5]} 59. Ra4 {[%clk 0:00:06.3]} 59... Rc7
{[%clk 0:00:02.8]} 60. Nc5 {[%clk 0:00:06.4]} 60... Rc8 {[%clk 0:00:03.6]} 61.
Ra7 {[%clk 0:00:06.1]} 61... Rc7 {[%clk 0:00:04.3]} 62. Nb7+ {[%clk 0:00:05.8]}
1-0